[Event "Slovakian-ch Youth 2022"]
[Site "Lubovna"]
[Date "2022.05.22"]
[Round "1.1"]
[White "Priechodsky, Radovan"]
[Black "Zetocha, Adrian"]
[Result "0-1"]
[ECO "B77"]
[WhiteElo "1965"]
[BlackElo "2331"]
[Annotator "TA"]
[PlyCount "69"]
[EventDate "2022.05.22"]
[EventCountry "SVK"]
[SourceTitle "playchess.com"]
[Source "ChessBase"]
[SourceQuality "1"]
[TimeControl "40/5400+30:1800+30"]

{[%evp 25,69,0,10,0,0,-43,-47,-59,-56,-50,-57,-83,-71,-75,-76,-101,-105,-132,-136,-125,-134,-199,-198,-198,-198,-185,-166,-375,-196,-185,-184,-177,-165,-206,-230,-237,-203,-317,-266,-438,-419,-533,81,-622,-609,-29994]} 1. e4 {[%emt 0:00:14]} c5 {[%emt 0:00:46]} 2. Nf3 {[%emt 0:00:46]} d6 {[%emt 0:00:36]} 3. d4 {[%emt 0:00:08]} cxd4 {[%emt 0:00:04]} 4. Nxd4 {[%emt 0:00:08]} Nf6 {[%emt 0:00:16]} 5. Nc3 {[%emt 0:00:07]} g6 {[%emt 0:00:50]} 6. Be3 {[%emt 0:00:48]} Bg7 {[%emt 0:00:28]} 7. f3 {[%emt 0:03:59]} Nc6 {[%emt 0:01:36]} 8. Bc4 {[%emt 0:03:39]} O-O {[%emt 0:00:18]} 9. Bb3 {[%emt 0:01:14]} Bd7 {[%emt 0:01:09]} 10. Qd2 {[%emt 0:00:11]} Nxd4 {[%emt 0:07:07]} 11. Bxd4 {[%emt 0:00:42]} b5 {[%emt 0:00:44]} 12. O-O {[%emt 0:01:56]} a5 {[%emt 0:11:10]} 13. a4 {[%emt 0:01:24]} b4 {[%emt 0:01:06]} 14. Nd5 {[%emt 0:03:33] B77: Sicilian Dragon: Yugoslav Attack, 9 Bc4 sidelines.} Nxd5 {[%emt 0:01:55]} 15. Bxd5 {[%emt 0:01:54]} Rc8 {[%emt 0:01:17][%cal Ba8c8,Bc8c5,Bc5e5][%mdl 32]} 16. Bb3 {[%emt 0:07:25] Black is slightly better.} Be6 {[%emt 0:12:14] [#]} 17. Bxg7 $146 {[%emt 0:01:11]} ({Predecessor:} 17. Bxe6 Bxd4+ 18. Qxd4 fxe6 19. Rf2 Rc5 20. Rd1 Qc7 21. Rdd2 Rc8 22. Rfe2 Qc6 23. b3 {0-1 (57) Navratil,J (2047)-Seidl,S (2144) Czech Republic 2012}) 17... Kxg7 {[%emt 0:00:05]} 18. Kh1 {[%emt 0:00:51]} Rc5 {[%emt 0:09:59]} 19. Qd4+ {[%emt 0:07:09]} Kg8 {[%emt 0:00:30]} 20. f4 {[%emt 0:01:06]} Qa8 {[%emt 0:04:25]} 21. f5 {[%emt 0:05:41]} Bxb3 {[%emt 0:00:50]} 22. cxb3 {[%emt 0:00:14]} Re5 {[%emt 0:02:37]} 23. Rf4 {[%emt 0:15:28]} (23. Rae1 $17 {was called for.}) 23... g5 $1 $19 {[%emt 0:04:21]} 24. Rg4 {[%emt 0:04:37]} f6 {[%emt 0:00:08]} 25. Re1 {[%emt 0:03:12]} Rc8 {[%emt 0:00:24] aiming for ...h5.} 26. Rg3 $2 {[%emt 0:07:12] [#]} (26. h4 h6 27. hxg5 hxg5 28. Re3) 26... Rc2 {[%emt 0:07:26]} (26... Rxe4 $142 $3 {[%mdl 512]} 27. Qd1 (27. Qg1 Rc2) 27... Rc2 $3 {[%mdl 512]}) 27. h4 {[%emt 0:02:58]} h6 {[%emt 0:05:33][%cal Bh7h6,Bh6g5][%mdl 32]} 28. hxg5 {[%emt 0:00:06]} hxg5 {[%emt 0:00:15]} (28... fxg5 29. Rf3 $15) 29. Qe3 {[%emt 0:06:50][%cal Og3g5]} Qc6 {[%emt 0:03:03]} (29... Rxb2 30. Rxg5+ fxg5 31. Qxg5+ Kf8 32. Qh6+ Kg8 33. f6 exf6 34. Qg6+ Kf8 35. Qxf6+ Ke8 36. Qh8+ Ke7 37. Qxa8 $18) 30. Kh2 {[%emt 0:14:38]} Rxb2 {[%emt 0:09:28]} (30... d5 31. Qa7) 31. Rh3 {[%emt 0:05:43]} (31. Qf3 {might work better.}) 31... Qc2 {[%emt 0:04:37][%csl Gb2][%cal Rc2g2]} 32. Rg1 {[%emt 0:00:52]} (32. Qf3 {was worth a try.}) 32... Qxe4 {[%emt 0:00:41]} 33. Qa7 {[%emt 0:00:24] [#] Qb8+ would kill now.} Qxf5 $2 {[%emt 0:03:48]} ({Black should try} 33... Kg7 $1 $19 34. Qb8 Rxg2+ 35. Rxg2 Qf4+ 36. Rhg3 (36. Kh1 {is a self mate.} Re1+ 37. Rg1 Qe4+) 36... g4) 34. Qb8+ $2 {[%emt 0:00:25][%mdl 8192]} (34. Qa8+ $16 Kf7 35. Rh8 Rxg2+ 36. Kxg2 (36. Rxg2 Qf4+ 37. Rg3 Re2+ 38. Kh1 Re1+ 39. Rg1 Rxg1+ 40. Kxg1 Qd4+ 41. Kh1 Qa1+ 42. Kh2 Qe5+ 43. Kh3 Qe3+ 44. Kh2 Qf4+ 45. Kg2 Qd2+ 46. Kh3 Qe3+ 47. Kh2 Qf4+ 48. Kh3 Qe3+ $11) 36... Qc2+ 37. Kh1) 34... Kf7 {[%emt 0:00:14] ( -> ...g4)} 35. Rh8 {[%emt 0:00:23] White did not feel at home in the position after the opening.  Weighted Error Value: White=0.75/Black=0.40} 0-1

[Event "Slovakian-ch Youth 2022"]
[Site "Lubovna"]
[Date "2022.05.21"]
[Round "1.1"]
[White "Elias, David"]
[Black "Cerven, Samuel"]
[Result "1-0"]
[ECO "D02"]
[WhiteElo "1901"]
[BlackElo "1353"]
[Annotator "TA"]
[PlyCount "123"]
[EventDate "2022.05.22"]
[EventCountry "SVK"]
[SourceTitle "playchess.com"]
[Source "ChessBase"]
[SourceQuality "1"]
[TimeControl "40/5400+30:1800+30"]

{[%evp 14,123,7,-4,18,-14,-6,-18,0,0,0,-14,-7,-24,-22,-13,-20,-18,-18,-16,-13,-18,-20,-15,-16,-92,-96,-160,-119,-204,-12,-189,-93,-57,-43,-51,0,0,0,6,17,33,56,51,180,189,180,173,316,167,169,160,251,249,251,202,292,288,260,239,279,277,358,295,292,264,266,261,402,412,403,422,425,375,380,239,239,239,239,187,127,127,139,75,75,75,95,95,95,89,82,75,75,75,476,462,731,700,816,690,1347,1294,1445,1236,1804,1818,4133,3714,3568,2868,29975,29976]} 1. d4 {[%emt 0:00:08]} d5 {[%emt 0:00:39]} 2. Nf3 {[%emt 0:00:23]} Nf6 {[%emt 0:00:27]} 3. c4 {[%emt 0:00:09]} c6 {[%emt 0:00:34]} 4. Qb3 {[%emt 0:00:07]} e6 {[%emt 0:27:48]} 5. g3 {[%emt 0:02:21]} Be7 {[%emt 0:01:13]} 6. Bg2 {[%emt 0:00:04]} O-O {[%emt 0:00:48]} 7. O-O {[%emt 0:00:25]} Nbd7 {[%emt 0:09:19]} 8. Bf4 {[%emt 0:01:55] Recently 8.Rd1 got a lot of attention.} b6 {[%emt 0:12:31] E07: Closed Catalan: Main Line (5 Nf3 0-0 6 0-0 Nbd7).} 9. Nbd2 {[%emt 0:00:23]} Bb7 {[%emt 0:00:47] [#]} 10. Rac1 $146 {[%emt 0:08:56]} ({Predecessor:} 10. Ne5 c5 11. Nxd7 Qxd7 12. dxc5 Bxc5 13. Rad1 Qe7 14. Bg5 dxc4 15. Qxc4 Bxg2 16. Kxg2 Rac8 17. Qb3 h6 18. Bxf6 Qxf6 19. Ne4 Qe7 20. Nxc5 Rxc5 {½-½ (20) Cramling,P (2465)-Stefanova,A (2486) St Petersburg 2018}) 10... Rc8 {[%emt 0:03:41] The position is equal.} 11. Rfd1 {[%emt 0:02:29]} c5 {[%emt 0:07:42]} 12. cxd5 {[%emt 0:27:00]} (12. dxc5 {seems wilder.} Bxc5 13. cxd5 Bxd5 14. Qd3) 12... Bxd5 {[%emt 0:08:40]} 13. Qc2 {[%emt 0:13:37]} (13. Nc4 {feels hotter.} a6 14. Nfe5 b5 15. Bxd5 exd5 16. Ne3) 13... cxd4 {[%emt 0:08:46]} (13... Bxa2 $2 14. b3 $18) (13... h6 {keeps more tension.} 14. Qb1 cxd4 15. Nxd4 Bxg2 16. Kxg2 Rxc1 17. Qxc1 Bc5) 14. Qxc8 {[%emt 0:00:13]} Qxc8 {[%emt 0:00:11]} 15. Rxc8 {[%emt 0:00:04]} Rxc8 {[%emt 0:00:06]} 16. Nxd4 {[%emt 0:00:31]} Bxg2 {[%emt 0:02:46]} 17. Kxg2 {[%emt 0:00:39]} e5 {[%emt 0:00:27]} 18. Nf5 {[%emt 0:01:02]} Bf8 {[%emt 0:03:12]} 19. Bg5 {[%emt 0:07:36]} (19. Be3 $1 $11 {remains equal.}) 19... Rc2 $17 {[%emt 0:05:46]} 20. Rb1 {[%emt 0:03:45]} (20. b3 $142) 20... h6 {[%emt 0:00:32]} 21. Be3 {[%emt 0:03:20] [#]} (21. Bxf6 $17 Rxd2 22. Be7) 21... Nd5 $2 {[%emt 0:01:54]} ({Black should play} 21... g6 $1 $19 {[%cal Rg6f5]} 22. Nh4 (22. Nxh6+ $2 Bxh6 23. Bxh6 Ng4 $19) 22... Bc5 23. Bxc5 (23. Bxh6 $2 Ng4 $19) 23... Nxc5) 22. Kf3 $2 {[%emt 0:02:22]} (22. Rd1 $11 {and White has nothing to worry.}) 22... Nxe3 {[%emt 0:00:21]} (22... g6 $19 23. Nxh6+ Kg7) 23. Kxe3 {[%emt 0:00:07]} Nf6 {[%emt 0:01:43]} 24. Kd3 {[%emt 0:00:27]} Rc5 {[%emt 0:00:30]} (24... Rc8 $15) 25. e4 $11 {[%emt 0:01:34]} Rc8 {[%emt 0:00:36]} 26. f3 {[%emt 0:00:42]} Bb4 {[%emt 0:01:01]} 27. Nc4 {[%emt 0:03:17]} Rd8+ {[%emt 0:00:16]} 28. Ke2 {[%emt 0:00:15]} Kh7 {[%emt 0:00:52]} ({Better is} 28... Re8 $14) 29. a3 $18 {[%emt 0:00:11]} ({Don't play} 29. Nxe5 $6 Rd2+ 30. Ke3 Rxh2 $14) 29... Bf8 {[%emt 0:00:17]} 30. Nxe5 {[%emt 0:00:15]} Re8 {[%emt 0:01:01]} (30... Rc8 {keeps fighting.} 31. Rd1 (31. Nxf7 Rc2+ 32. Kd3 Rxh2 $16) 31... Rc2+ 32. Rd2 Rc7) 31. Nd3 {[%emt 0:01:33]} (31. Nxf7 $142 {And now Rc1 would win.} Kg8 32. N7d6) 31... g6 {[%emt 0:00:47]} 32. Ne3 {[%emt 0:00:11]} Bc5 {[%emt 0:00:21]} (32... Kg7 $16 {was called for.} 33. e5 Nd7) 33. Nxc5 {[%emt 0:00:13]} bxc5 {[%emt 0:00:01][%mdl 4096] Endgame KRN-KRN} 34. Rc1 {[%emt 0:00:25]} Rc8 {[%emt 0:00:08]} (34... Rb8 $142 35. Nc4 (35. Rxc5 Rxb2+ 36. Rc2 Rxc2+ 37. Nxc2 Kg7 $16) 35... Nd7) 35. b4 {[%emt 0:02:01]} Nd7 {[%emt 0:00:09]} 36. Rc4 {[%emt 0:01:43]} Rb8 {[%emt 0:01:50]} 37. bxc5 {[%emt 0:00:26]} Rb2+ {[%emt 0:00:39]} 38. Kd1 {[%emt 0:01:48]} Ne5 {[%emt 0:00:26]} 39. Rc2 {[%emt 0:01:39]} Rb3 {[%emt 0:00:20]} 40. Nd5 {[%emt 0:04:55]} Nc6 {[%emt 0:00:16]} (40... Rxf3 $142 41. c6 Nxc6 42. Rxc6 Rxa3) 41. Nb4 {[%emt 0:32:19]} Nxb4 {[%emt 0:30:52]} 42. axb4 {[%emt 0:00:06]} Rxb4 {[%emt 0:00:06] KR-KR} 43. c6 {[%emt 0:00:22][%cal Bc5c6,Bc6c7][%mdl 32]} Rb8 {[%emt 0:00:01]} 44. c7 {[%emt 0:00:05]} Rc8 {[%emt 0:00:10]} 45. h4 {[%emt 0:08:03]} Kg7 {[%emt 0:00:28]} 46. Rc6 {[%emt 0:00:50]} Kf8 {[%emt 0:00:22]} 47. h5 {[%emt 0:00:00]} gxh5 {[%emt 0:00:00]} 48. Rxh6 {[%emt 0:00:00] White is more active.} (48. Kd2 $142) 48... Rxc7 $16 {[%emt 0:00:00]} 49. Rxh5 {[%emt 0:00:00] Strongly threatening Kd2.} Rc3 {[%emt 0:00:00]} 50. Ke2 {[%emt 0:00:00] Hoping for Ra5.} Ra3 {[%emt 0:00:00] Prevents Ra5.} 51. Rh8+ {[%emt 0:00:00]} Kg7 {[%emt 0:00:00]} 52. Ra8 {[%emt 0:00:00]} a5 {[%emt 0:00:00]} 53. Kf2 {[%emt 0:00:00] Threatens to win with g4.} Kf6 $2 {[%emt 0:00:00][%mdl 8192] [#]} (53... a4 $16 {is tougher.}) 54. f4 $1 $18 {[%emt 0:00:00]} Kg6 {[%emt 0:00:00]} (54... a4 $142 55. g4 Ra2+ 56. Kg3 Kg7) 55. Ra6+ {[%emt 0:00:00]} Kg7 {[%emt 0:00:00]} 56. e5 {[%emt 0:00:00]} Kf8 {[%emt 0:00:00]} 57. Kg2 {[%emt 0:00:00]} Ra1 {[%emt 0:00:00]} 58. Kf3 {[%emt 0:00:00]} a4 {[%emt 0:00:00]} 59. Kg4 {[%emt 0:00:00]} a3 {[%emt 0:00:00]} 60. Kf5 {[%emt 0:00:00] Threatening mate with Kf6.} Kg7 {[%emt 0:00:00]} 61. Ra7 {[%emt 0:00:00] Black must now prevent e6.} Kf8 {[%emt 0:00:00]} 62. Kf6 {[%emt 0:00:00] Never resign too early!  Weighted Error Value: White=0.29 (precise) /Black=0.64} 1-0

[Event "Slovakian-ch Youth 2022"]
[Site "Lubovna"]
[Date "2022.05.22"]
[Round "1.2"]
[White "Turcan, Richard"]
[Black "Valko, Michal"]
[Result "1-0"]
[ECO "A57"]
[WhiteElo "2278"]
[BlackElo "1906"]
[Annotator "TA"]
[PlyCount "87"]
[EventDate "2022.05.22"]
[EventCountry "SVK"]
[SourceTitle "playchess.com"]
[Source "ChessBase"]
[SourceQuality "1"]
[TimeControl "40/5400+30:1800+30"]

{[%evp 18,87,25,8,25,18,26,9,46,-4,0,-6,0,-10,0,0,0,0,0,0,0,2,13,17,12,14,18,-69,0,0,0,0,0,0,0,0,89,97,97,86,85,85,82,83,124,137,427,419,398,462,456,454,454,454,449,460,486,464,485,475,451,463,415,381,514,506,909,862,903,878,1033,1013]} 1. d4 {[%emt 0:00:21]} Nf6 {[%emt 0:00:27]} 2. c4 {[%emt 0:00:15]} c5 {[%emt 0:00:20]} 3. d5 {[%emt 0:00:06]} b5 {[%emt 0:00:17]} 4. a4 {[%emt 0:01:01]} bxc4 {[%emt 0:01:32]} 5. Nc3 {[%emt 0:00:05]} d6 {[%emt 0:01:26]} 6. e4 {[%emt 0:01:37]} g6 {[%emt 0:00:19]} 7. f4 {[%emt 0:00:49]} Bg7 {[%emt 0:08:44]} 8. Nf3 {[%emt 0:00:20]} O-O {[%emt 0:00:30]} 9. Bxc4 {[%emt 0:00:30]} Ba6 {[%emt 0:00:30]} 10. Bb5 {[%emt 0:00:30]} Ne8 {[%emt 0:01:09] A57: Benko/Volga Gambit.} 11. O-O {[%emt 0:02:36]} Nc7 {[%emt 0:00:30] [#]} 12. Qe2 $146 {[%emt 0:21:45]} ({Predecessor:} 12. f5 Bxb5 13. axb5 Nd7 14. Qe2 Nb6 15. Ng5 h6 16. Nh3 Nd7 17. Rf3 Ne5 18. Rg3 {1-0 (62) Ward,C (2500)-Adams,M (2660) Hastings 1995}) 12... Qc8 {[%emt 0:03:25] The position is equal.} 13. Bd2 {[%emt 0:06:32]} (13. f5 $14) 13... Bxb5 {[%emt 0:02:25]} 14. axb5 {[%emt 0:07:30][%cal Of4f5]} Nd7 {[%emt 0:00:30][%cal Bb8d7,Bd7b6,Bb6c4][%mdl 32]} 15. Ra5 {[%emt 0:00:30]} a6 {[%emt 0:02:47]} 16. Rfa1 {[%emt 0:13:11][%cal Rb5a6]} axb5 {[%emt 0:01:12] Hoping for ...Rxa5.} 17. Rxa8 {[%emt 0:00:59]} Nxa8 {[%emt 0:02:50]} 18. Qxb5 {[%emt 0:02:12]} Qc7 {[%emt 0:03:50]} 19. Qc6 {[%emt 0:10:09]} Ndb6 {[%emt 0:04:23]} (19... Rc8 {with more complications.} 20. Rxa8 Qxc6 21. dxc6 Rxa8 22. cxd7 Rd8) 20. Qxc7 {[%emt 0:03:21]} (20. Nb5 {is interesting.} Qb8 21. Ra7 Rc8 22. Rb7) 20... Nxc7 {[%emt 0:00:02]} 21. Ra7 {[%emt 0:00:23]} Rc8 {[%emt 0:01:04]} 22. Kf2 {[%emt 0:04:53]} (22. Rb7 $11 Nc4 23. Na4) 22... Kf8 {[%emt 0:03:17]} (22... Nc4 $15) 23. Ke2 $11 {[%emt 0:03:09]} Nc4 {[%emt 0:02:36]} 24. Bc1 {[%emt 0:00:58]} Bxc3 {[%emt 0:32:58]} 25. bxc3 {[%emt 0:00:04][%cal Bb2c3,Bc3c4][%mdl 32]} Nb5 {[%emt 0:00:10][%csl LRa7,LRc3] Pair of Knights!} 26. Ra1 {[%emt 0:01:17] [#] Threatens to win with Kd3.} Rb8 {[%emt 0:02:46]} ({Much less strong is} 26... Nxc3+ 27. Kd3 $16) (26... Nb6 $11 {remains equal.}) 27. Kd3 $16 {[%emt 0:01:33]} Nb6 {[%emt 0:00:23]} 28. c4 $36 {[%emt 0:00:14][%mdl 2048] White has strong initiative.} Nc7 {[%emt 0:01:03]} 29. e5 {[%emt 0:01:48]} Nc8 {[%emt 0:01:40]} 30. Bd2 {[%emt 0:01:36]} e6 {[%emt 0:03:24]} 31. Ba5 {[%emt 0:01:45] White is more active.} Ra8 $2 {[%emt 0:00:16][%mdl 8192] This costs Black the game.} (31... Na6 $16) 32. exd6 $18 {[%emt 0:00:13]} Nxd6 {[%emt 0:01:58] [#]} 33. Bxc7 $1 {[%emt 0:00:00]} Rxa1 {[%emt 0:00:30]} 34. Bxd6+ {[%emt 0:00:08]} Ke8 {[%emt 0:01:50]} 35. dxe6 {[%emt 0:00:30]} ({Weaker is} 35. Bxc5 exd5 36. cxd5 Rf1 $18) 35... fxe6 {[%emt 0:00:30]} 36. Bxc5 {[%emt 0:00:30]} Kd7 {[%emt 0:02:13]} 37. Be3 {[%emt 0:01:20]} Ra2 {[%emt 0:00:30]} 38. g3 {[%emt 0:00:07]} Kd6 {[%emt 0:00:10]} 39. Ke4 {[%emt 0:00:35]} Ra4 {[%emt 0:15:34]} 40. Kd4 {[%emt 0:15:08]} Ra5 {[%emt 0:00:30]} 41. Ng5 {[%emt 0:30:30] White is clearly winning.} h6 {[%emt 0:30:30]} (41... h5 $142 42. h3 Ra1 43. Nf7+ Kc7) 42. Nf7+ {[%emt 0:00:30]} Kc6 {[%emt 0:00:30]} 43. Nxh6 {[%emt 0:00:30]} Rh5 {[%emt 0:00:30]} 44. Ng4 {[%emt 0:00:30] Weighted Error Value: White=0.11 (very precise) /Black=0.33} 1-0

[Event "Slovakian-ch Youth 2022"]
[Site "Lubovna"]
[Date "2022.05.21"]
[Round "1.2"]
[White "Buda, Alexander"]
[Black "Pisarcik, Richard"]
[Result "0-1"]
[ECO "C55"]
[WhiteElo "1744"]
[BlackElo "1343"]
[Annotator "NA COMBH"]
[PlyCount "60"]
[EventDate "2022.05.22"]
[EventCountry "SVK"]
[SourceTitle "playchess.com"]
[Source "ChessBase"]
[SourceQuality "1"]
[TimeControl "40/5400+30:1800+30"]

1. e4 {[%emt 0:00:01]} e5 {[%emt 0:00:07]} 2. Nf3 {[%emt 0:00:07]} Nc6 {[%emt 0:00:06]} 3. Bc4 {[%emt 0:00:20]} Nf6 {[%emt 0:00:17]} 4. d3 {[%emt 0:00:03]} Be7 {[%emt 0:00:21]} 5. O-O {[%emt 0:00:08]} d5 {[%emt 0:00:40]} 6. Nc3 {[%emt 0:01:05]} dxc4 {[%emt 0:00:18]} 7. dxc4 {[%emt 0:00:02]} Qxd1 {[%emt 0:00:17]} 8. Rxd1 {[%emt 0:00:03]} Bg4 {[%emt 0:00:58]} 9. Nb5 {[%emt 0:03:55]} Rc8 {[%emt 0:01:39]} 10. Be3 {[%emt 0:01:32]} Nxe4 {[%emt 0:01:39]} 11. h3 {[%emt 0:04:15]} Bxf3 {[%emt 0:00:51]} 12. gxf3 {[%emt 0:00:03]} Nf6 {[%emt 0:00:48]} 13. Rd2 {[%emt 0:01:34]} O-O {[%emt 0:00:29]} 14. a4 {[%emt 0:02:20]} a6 {[%emt 0:00:29]} 15. Nc3 {[%emt 0:00:55]} Bb4 {[%emt 0:00:12]} 16. Rb1 {[%emt 0:01:34]} e4 {[%emt 0:00:51]} 17. f4 {[%emt 0:01:35]} Na5 {[%emt 0:00:37]} 18. Bd4 {[%emt 0:01:38]} Nxc4 {[%emt 0:02:15]} 19. Re2 {[%emt 0:00:59]} Bxc3 {[%emt 0:02:24]} 20. bxc3 {[%emt 0:00:57]} Nd5 {[%emt 0:00:30]} 21. Rxe4 {[%emt 0:00:46]} Nd2 {[%emt 0:00:40]} 22. Ree1 {[%emt 0:03:09]} Nxb1 {[%emt 0:00:05]} 23. Rxb1 {[%emt 0:00:43]} Nxf4 {[%emt 0:00:07]} 24. Kf1 {[%emt 0:01:35]} Rfe8 {[%emt 0:01:08]} 25. Rxb7 {[%emt 0:01:01]} Ne2 {[%emt 0:00:36]} 26. Be3 {[%emt 0:02:51]} Nxc3 {[%emt 0:00:13]} 27. Bf4 {[%emt 0:00:09]} h6 {[%emt 0:00:23]} 28. Bxc7 {[%emt 0:01:00]} Re7 {[%emt 0:00:12]} 29. Rb8 {[%emt 0:00:27]} Rexc7 {[%emt 0:00:13]} 30. Rxc8+ {[%emt 0:00:03]} Rxc8 {[%emt 0:00:16]} 0-1

[Event "Slovakian-ch Youth 2022"]
[Site "Lubovna"]
[Date "2022.05.21"]
[Round "1.2"]
[White "Kudela, Oliver"]
[Black "Smetana, Peter"]
[Result "0-1"]
[ECO "B32"]
[WhiteElo "1344"]
[BlackElo "1740"]
[Annotator "NA COMBH"]
[PlyCount "40"]
[EventDate "2022.05.22"]
[EventCountry "SVK"]
[SourceTitle "playchess.com"]
[Source "ChessBase"]
[SourceQuality "1"]
[TimeControl "40/5400+30:1800+30"]

1. e4 {[%emt 0:00:06]} c5 {[%emt 0:00:53]} 2. Nf3 {[%emt 0:00:31]} Nc6 {[%emt 0:01:12]} 3. d4 {[%emt 0:00:35]} cxd4 {[%emt 0:00:48]} 4. Nxd4 {[%emt 0:00:19]} e5 {[%emt 0:01:55]} 5. Nf3 {[%emt 0:02:18]} Nf6 {[%emt 0:01:01]} 6. Nc3 {[%emt 0:01:35]} Bc5 {[%emt 0:01:18]} 7. Bc4 {[%emt 0:01:57]} h6 {[%emt 0:02:24]} 8. h3 {[%emt 0:01:34]} O-O {[%emt 0:01:23]} 9. O-O {[%emt 0:01:45]} d6 {[%emt 0:06:32]} 10. Re1 {[%emt 0:01:09]} Qb6 {[%emt 0:08:18]} 11. Re2 {[%emt 0:03:41]} Nd4 {[%emt 0:07:22]} 12. Nxd4 {[%emt 0:04:00]} Bxd4 {[%emt 0:01:40]} 13. Qd3 {[%emt 0:04:43]} Bd7 {[%emt 0:05:40]} 14. Qg3 {[%emt 0:04:55]} Kh8 {[%emt 0:01:22]} 15. b3 {[%emt 0:05:09]} Rac8 {[%emt 0:03:10]} 16. Rb1 {[%emt 0:01:33]} Qc6 {[%emt 0:02:29]} 17. Nd5 {[%emt 0:04:16]} Nxd5 {[%emt 0:01:27]} 18. exd5 {[%emt 0:01:09]} Qb6 {[%emt 0:01:14]} 19. Qh4 {[%emt 0:00:56]} Rxc4 {[%emt 0:03:24]} 20. Re4 {[%emt 0:02:56]} Bxf2+ {[%emt 0:00:19]} 0-1

[Event "Slovakian-ch Youth 2022"]
[Site "Lubovna"]
[Date "2022.05.22"]
[Round "1.3"]
[White "Kapec, Kristian"]
[Black "Bochnicka, Vladimir"]
[Result "0-1"]
[ECO "B02"]
[WhiteElo "1902"]
[BlackElo "2267"]
[Annotator "TA"]
[PlyCount "74"]
[EventDate "2022.05.22"]
[EventCountry "SVK"]
[SourceTitle "playchess.com"]
[Source "ChessBase"]
[SourceQuality "1"]
[TimeControl "40/5400+30:1800+30"]

{[%evp 15,74,15,12,-39,-32,-39,-21,-27,-27,-49,-32,-37,-29,-38,-17,-37,0,-10,0,0,0,0,0,0,3,-1,46,38,88,90,170,169,154,147,139,102,132,121,126,114,173,5,41,-653,-650,-1284,-1279,-1257,-1262,-1210,-1210,-1174,-919,-1095,-910,-1024,-1011,-29982,-29983,-29993,-29994]} 1. e4 {[%emt 0:01:40]} c5 {[%emt 0:00:06]} 2. c3 {[%emt 0:00:07]} Nf6 {[%emt 0:00:38]} 3. e5 {[%emt 0:00:36]} Nd5 {[%emt 0:00:24]} 4. d4 {[%emt 0:00:42]} cxd4 {[%emt 0:00:12]} 5. cxd4 {[%emt 0:00:14]} Nc6 {[%emt 0:00:28]} 6. Nf3 {[%emt 0:00:25]} e6 {[%emt 0:00:34]} 7. Nc3 {[%emt 0:09:57]} d6 {[%emt 0:09:31]} 8. Nxd5 {[%emt 0:10:22]} exd5 {[%emt 0:01:11]} 9. exd6 {[%emt 0:05:52] B02: Alekhine's Defence: Chase Variation and lines with early Nc3.} (9. Bd3 $11) 9... Bxd6 $15 {[%emt 0:00:40]} 10. Bd3 {[%emt 0:01:27]} Bg4 {[%emt 0:06:36]} 11. O-O {[%emt 0:04:46] The position is equal.} O-O {[%emt 0:17:08] Active counter play!} 12. Be3 {[%emt 0:00:40] [#]} Rc8 $146 {[%emt 0:05:51]} ({Predecessor:} 12... Qf6 13. h3 Bh5 14. g4 Bg6 15. Bg5 Qe6 16. Re1 Qd7 17. Ne5 Bxe5 18. dxe5 Rfe8 {0-1 (26) Krishnan,V (2228)-Le,T (2501) Chess.com INT 2020}) 13. a3 {[%emt 0:01:26]} Qf6 {[%emt 0:06:02]} 14. Be2 {[%emt 0:02:34]} Rfe8 {[%emt 0:01:29]} 15. Qb3 {[%emt 0:01:32]} Bf4 {[%emt 0:08:11]} 16. h3 {[%emt 0:07:25]} Be6 {[%emt 0:08:10]} 17. Qxb7 {[%emt 0:01:47]} Bxe3 {[%emt 0:01:08]} 18. fxe3 {[%emt 0:00:11]} Qh6 {[%emt 0:02:40]} 19. Bb5 {[%emt 0:02:17]} Re7 {[%emt 0:02:54]} 20. Qa6 $132 {[%emt 0:04:59][%mdl 2048] Threatens to win with Rac1. White is fighting back} Rec7 {[%emt 0:05:24]} (20... Qxe3+ $11 21. Kh1 Rec7) 21. Rae1 $14 {[%emt 0:03:11]} Ne7 {[%emt 0:04:46]} (21... Qg6 $14) 22. Bd3 $16 {[%emt 0:01:37]} Rc6 {[%emt 0:01:53] Prevents Qd6.} (22... Nf5 $16 {was called for.}) 23. Qxa7 $18 {[%emt 0:00:17]} Nf5 {[%emt 0:02:17]} 24. Bxf5 {[%emt 0:00:43]} Bxf5 {[%emt 0:00:03]} 25. Ne5 {[%emt 0:00:46]} R6c7 {[%emt 0:00:14]} 26. Qa5 {[%emt 0:01:51]} Be4 {[%emt 0:00:55] [#]} 27. Rf2 {[%emt 0:01:46]} Qg5 {[%emt 0:03:14] [#]} (27... Qh4 $16 {might work better.}) 28. Nf3 $2 {[%emt 0:04:27]} (28. Qa6 $1 $18) 28... Qg3 {[%emt 0:00:11]} (28... Bxf3 $5 29. Rxf3 (29. h4 $2 Qg4 $19) 29... Rc2 $14) 29. Nd2 $2 {[%emt 0:00:45][%mdl 8192] [#]} (29. Rd1 $14) 29... Bxg2 $1 $19 {[%emt 0:01:01][%mdl 576] Pin} 30. Nf1 {[%emt 0:02:25]} (30. Rxg2 Qxe1+) 30... Bxf1+ {[%emt 0:00:05]} 31. Kxf1 {[%emt 0:00:06]} Qxh3+ {[%emt 0:00:43]} 32. Kg1 {[%emt 0:00:42]} Rc1 {[%emt 0:01:27] Hoping for ...Qxe3.} 33. Qd2 {[%emt 0:01:12]} R1c6 {[%emt 0:02:51][%cal Bc1c6,Bc6g6,Bg6h6][%mdl 32] ...Rg6+ is the strong threat.} 34. Rh2 {[%emt 0:01:21]} Rg6+ {[%emt 0:00:40]} 35. Rg2 {[%emt 0:00:11]} Rcc6 {[%emt 0:00:40] ( -> ...Rh6)} 36. Ree2 {[%emt 0:00:26]} Rh6 {[%emt 0:00:33]} 37. Rh2 {[%emt 0:00:30]} Rcg6+ {[%emt 0:00:11] Never resign too early!  Weighted Error Value: White=0.84/Black=0.25 (precise)} 0-1